bitfinex-derivatives/quotes_SOLF0:USTF0_20241101
["timestamp","ask_amount","ask_price","bid_price","bid_amount"]
[1730464056352,9.1489799,168.22,168.16,9.1489799]
[1730464056554,2.975,168.21,168.18,2.9754]
[1730464057553,2.975,168.21,168.16,9.1489799]
[1730464057554,9.1489799,168.2,168.17,2.9756]
[1730464058342,9.1489799,168.2,168.16,12.1246799]
[1730464059059,9.1489799,168.2,168.16,9.1489799]
[1730464059356,12.1241799,168.2,168.17,2.9756]
[1730464062764,12.1241799,168.2,168.09,1.3877]
[1730464062765,9.1489799,168.18,168.05,9.1489799]
[1730464062951,9.1489799,168.07,168.01,9.1489799]
[1730464063268,9.1489799,168.07,168.04,2.9778]
[1730464064154,9.1489799,168.07,168.01,11.8489799]
[1730464064155,9.1489799,168.07,168.02,2.7]
[1730464064755,9.1489799,168.07,168.04,2.978]
[1730464066061,9.1489799,168.07,168.02,11.8489799]
[1730464066255,9.1489799,168.07,168.04,2.9779]
[1730464066451,9.1489799,168.09,168.04,2.9779]
[1730464066861,12.1261799,168.09,168.04,2.9779]
[1730464067369,12.1261799,168.09,168.05,2.9778]
[1730464069552,9.1489799,168.07,168.05,2.9778]
[1730464069765,9.1489799,168.09,168.07,2.9774]
[1730464070070,9.1489799,168.09,168.03,9.1489799]
[1730464071265,9.1489799,168.09,168.07,2.9774]
[1730464074470,9.1489799,168.09,168.08,2.9773]
[1730464075561,9.1489799,168.1,168.09,2.9769]
[1730464076669,9.1489799,168.1,168.03,9.1489799]
[1730464076863,9.1489799,168.08,168.03,9.1489799]
[1730464077465,9.1489799,168.08,168.06,2.9775]
[1730464080759,9.1489799,168.08,168.07,2.9774]
[1730464081961,9.1489799,168.08,168.02,2.7]
[1730464081962,9.1489799,168.08,168.02,11.8489799]
[1730464082161,9.1489799,168.08,168.04,9.1489799]
[1730464083269,9.1489799,168.08,168.07,2.9774]
[1730464085473,12.1258799,168.1,168.07,2.9774]
[1730464085878,9.1489799,168.1,168.05,9.1489799]
[1730464086089,9.1489799,168.12,168.07,9.1489799]
[1730464086267,9.1489799,168.13,168.07,9.1489799]
[1730464086577,12.1254799,168.13,168.1,2.9768]
[1730464086762,9.1489799,168.13,168.08,9.1489799]
[1730464087476,9.1489799,168.13,168.11,2.9766]
[1730464088277,12.1253799,168.13,168.11,2.9766]
[1730464091474,9.1489799,168.12,168.11,2.9767]
[1730464091676,12.1251799,168.14,168.08,9.1489799]
[1730464091981,9.1489799,168.12,168.1,2.9768]
[1730464092183,9.1489799,168.12,168.08,9.1489799]
[1730464092370,9.1489799,168.12,168.06,9.1489799]
[1730464092684,9.1489799,168.12,168.1,2.9768]
[1730464093276,9.1489799,168.12,168.11,2.9767]
[1730464093773,20.17972561,168.16,168.02,3.04380214]
[1730464093774,9.1489799,168.14,168.09,9.1489799]
[1730464093980,9.1489799,168.14,168.12,2.9765]
[1730464095184,22.09927745,168.4,168.02,3.04380214]
[1730464095185,9.1489799,168.19,168.13,9.1489799]
[1730464095489,9.1489799,168.19,168.15,9.1489799]
[1730464095884,9.1489799,168.21,168.16,9.1489799]
[1730464096280,9.1489799,168.24,168.19,9.1489799]
[1730464096483,12.1233799,168.24,168.19,9.1489799]
[1730464096997,12.1233799,168.24,168.2,2.975]
[1730464097993,9.1489799,168.23,168.2,2.975]
[1730464098198,12.1235799,168.23,168.2,2.975]
[1730464099487,9.1489799,168.21,168.14,9.1489799]
[1730464099687,9.1489799,168.19,168.12,9.1489799]
[1730464099896,9.1489799,168.17,168.12,9.1489799]
[1730464100098,9.1489799,168.17,168.15,2.9759]
[1730464101494,9.1489799,168.17,168.12,9.1489799]
[1730464101697,9.1489799,168.17,168.13,2.9763]
[1730464102300,12.1247799,168.17,168.13,2.9763]
[1730464102502,12.1247799,168.17,168.14,2.9762]
[1730464102998,9.1489799,168.17,168.12,9.1489799]
[1730464103203,9.1489799,168.17,168.15,2.976]
[1730464105927,2.976,168.15,168.12,2.9765]
[1730464106199,9.1489799,168.14,168.08,9.1489799]
[1730464106388,9.1489799,168.14,168.07,9.1489799]
[1730464106792,2.9764,168.13,168.1,2.9768]
[1730464106992,2.9764,168.13,168.07,9.1489799]
[1730464107191,9.1489799,168.14,168.07,9.1489799]
[1730464107397,12.1251799,168.14,168.11,2.9767]
[1730464110308,9.1489799,168.15,168.11,9.1489799]
[1730464110600,9.1489799,168.19,168.13,9.1489799]
[1730464110907,9.1489799,168.19,168.14,2.976]
[1730464110908,12.1244799,168.19,168.14,2.976]
[1730464111101,9.1489799,168.16,168.14,2.976]
[1730464111507,12.1248799,168.16,168.13,2.9762]
[1730464111694,9.1489799,168.16,168.12,9.1489799]
[1730464112096,9.1489799,168.16,168.13,2.9763]
[1730464112496,9.1489799,168.16,168.12,9.1489799]
[1730464112707,12.1243799,168.19,168.16,2.9758]
[1730464116508,5.9481,168.27,168.17,2.9757]
[1730464116509,2.9752,168.2,168.17,2.9757]
[1730464117312,9.1489799,168.19,168.17,2.9757]
[1730464117707,12.1242799,168.19,168.16,2.9758]
[1730464119000,9.1489799,168.19,168.14,9.1489799]
[1730464119208,9.1489799,168.15,168.12,2.9764]
[1730464120104,9.1489799,168.15,168.13,2.9763]
[1730464120307,12.1250799,168.15,168.09,9.1489799]
[1730464120507,9.1489799,168.13,168.08,9.1489799]
[1730464120704,9.1489799,168.13,168.1,2.9768]
[1730464120933,12.1254799,168.13,168.1,2.9768]
[1730464121403,12.1254799,168.13,168.08,9.1489799]
[1730464122102,12.1254799,168.13,168.1,2.9768]
[1730464122814,9.1489799,168.13,168.08,9.1489799]
[1730464123019,35.71,168.28,168.08,2.9771]
[1730464123020,12.1257799,168.11,168.08,2.9771]
[1730464124300,12.1257799,168.11,168.07,2.9774]
[1730464124301,9.1489799,168.11,168.07,2.9774]
[1730464124501,35.71,168.28,168.04,9.1489799]
[1730464124502,9.1489799,168.1,168.04,9.1489799]
[1730464124807,9.1489799,168.1,168.05,2.9777]
[1730464124808,2.9773,168.08,168.05,2.9777]
[1730464125605,2.9773,168.08,168.06,2.9776]
[1730464125802,9.1489799,168.11,168.07,9.1489799]
[1730464126005,9.1489799,168.13,168.07,9.1489799]
[1730464126205,9.1489799,168.13,168.09,2.977]
[1730464126410,9.1489799,168.13,168.07,9.1489799]
[1730464126411,2.9767,168.11,168.04,14.28798376]
[1730464127022,2.9767,168.11,168.08,2.9771]
[1730464130416,2.9766,168.12,168.08,2.9771]
[1730464133313,14.28798376,168.17,168.07,14.28798376]
[1730464133520,2.9761,168.15,168.11,2.9766]
[1730464135527,2.9761,168.15,168.07,14.28798376]
[1730464136024,14.28798376,168.17,168.07,14.28798376]
[1730464136525,14.28798376,168.17,168.12,2.9765]
[1730464136824,14.28798376,168.19,168.12,2.9765]
[1730464137126,2.976,168.16,168.12,2.9765]
[1730464137425,14.28798376,168.19,168.09,14.28798376]
[1730464140822,14.28798376,168.23,168.12,14.28798376]
[1730464141132,2.9748,168.22,168.18,2.9753]
[1730464142631,2.975,168.21,168.18,2.9753]
[1730464144231,2.975,168.21,168.17,2.9755]
[1730464146533,2.975,168.21,168.06,8.9055853]
[1730464146534,2.9756,168.18,168.13,2.9762]
[1730464146930,2.9756,168.18,168.1,14.28798376]
[1730464147136,2.9756,168.18,168.14,2.9762]
[1730464149730,2.9756,168.18,168.15,2.976]
[1730464151036,14.28798376,168.21,168.12,14.28798376]
[1730464152133,2.9754,168.19,168.15,2.9759]
[1730464152329,14.28798376,168.21,168.15,2.9759]
[1730464152528,9.14612946,168.21,168.15,9.14612946]
[1730464152836,12.12122946,168.21,168.17,12.12162946]
[1730464153035,12.12122946,168.21,168.17,9.14612946]
[1730464153546,2.9747,168.23,168.18,9.14612946]
[1730464154330,12.12062946,168.24,168.2,2.9751]
[1730464154536,19.61681637,168.33,168.2,2.9751]
[1730464154839,19.61681637,168.33,168.12,2.95166952]
[1730464155043,19.61681637,168.33,168.05,47.62289416]
[1730464155225,19.61681637,168.33,168.08,5.9544]
[1730464155938,2.9748,168.23,168.18,2.9753]
[1730464156141,19.61681637,168.33,168.18,2.9753]
[1730464156331,19.61681637,168.33,168.08,5.9544]
[1730464157137,2.9749,168.22,168.18,2.9754]
[1730464166043,2.9747,168.23,168.18,2.9754]
[1730464166238,19.61681637,168.33,168.15,2.9759]
[1730464166458,19.61681637,168.33,168.08,5.9544]
[1730464167044,2.9746,168.24,168.19,2.9751]
[1730464167539,2.9746,168.23,168.19,2.9751]
[1730464167851,19.61681637,168.33,168.19,2.9753]
[1730464168643,2.9746,168.24,168.19,2.9753]
[1730464169149,2.9749,168.22,168.17,2.9755]
[1730464170464,19.61681637,168.33,168.17,2.9755]
[1730464170749,2.9751,168.21,168.17,2.9755]
[1730464171252,2.9747,168.23,168.18,2.9754]
[1730464171453,2.9747,168.23,168.08,5.9544]
[1730464171454,19.61681637,168.33,168.08,5.9544]
[1730464171953,2.9749,168.22,168.17,2.9755]
[1730464173959,19.61681637,168.33,168.19,2.9752]
[1730464173960,2.9744,168.25,168.19,2.9752]
[1730464176663,2.9745,168.24,168.19,2.9752]
[1730464178064,2.9745,168.24,168.17,2.9756]
[1730464179957,9.32006006,168.36,168.17,2.9756]
[1730464180156,2.9742,168.26,168.17,2.9756]
[1730464181356,2.9743,168.25,168.17,2.9756]
[1730464182054,19.61013221,168.37,168.15,3.00930494]
[1730464182055,9.32006006,168.36,168.15,3.00930494]
[1730464182250,19.61013221,168.37,168.05,50.54419548]
[1730464182662,19.61013221,168.37,168.06,1.09387087]
[1730464183054,19.61013221,168.37,168.06,2.09387087]
[1730464183257,19.61013221,168.37,168.06,1.0]
[1730464183672,2.9741,168.26,168.18,2.9754]
[1730464184867,2.9741,168.26,168.16,2.90746833]
[1730464184868,2.9737,168.29,168.2,2.9751]
[1730464185171,47.62289416,168.45,168.16,2.90746833]
[1730464185366,17.98393715,168.44,168.11,17.87]
[1730464185566,2.9675818,168.43,168.11,17.87]
[1730464186072,2.9675818,168.43,168.26,2.974]
[1730464186073,2.9727,168.34,168.26,2.974]
[1730464188860,2.9727,168.34,168.24,2.92898935]
[1730464189073,2.9727,168.34,168.27,2.9738]
[1730464190571,50.62654344,168.45,168.25,2.9741]
[1730464190572,2.973,168.32,168.25,2.9741]
[1730464191271,2.973,168.32,168.25,5.9734067]
[1730464191472,2.973,168.32,168.25,2.9741]
[1730464193373,2.9734,168.3,168.22,2.9747]
[1730464193959,2.9734,168.3,168.23,2.9746]
[1730464196466,2.9723,168.36,168.22,2.9747]
[1730464196778,17.87,168.43,168.22,2.9747]
[1730464196779,9.91205656,168.42,168.22,2.9747]
[1730464197370,83.37289416,168.39,168.13,2.38025133]
[1730464197580,83.37289416,168.39,168.14,3.86820788]
[1730464197774,27.78205656,168.38,168.15,3.86820788]
[1730464197968,2.9745,168.24,168.16,6.84449156]
[1730464198171,2.9745,168.24,168.17,1.48795829]
[1730464198476,17.87,168.38,168.07,42.82]
[1730464198477,17.87,168.38,168.08,2.38076043]
[1730464198783,2.9742,168.26,168.17,2.9756]
[1730464199278,3.0027,168.33,168.17,2.9756]
[1730464199476,2.9743,168.25,168.17,2.9756]
[1730464200672,9.91922298,168.37,168.14,3.00299762]
[1730464200877,65.49289416,168.34,168.15,3.86874403]
[1730464201082,50.59166534,168.34,168.08,2.38076556]
[1730464201273,22.0632177,168.46,168.09,3.86897688]
[1730464201274,47.62289416,168.39,168.09,3.86897688]
[1730464201489,47.62289416,168.39,168.04,47.62289416]
[1730464201490,9.92710523,168.38,168.1,3.86897688]
[1730464201687,9.92710523,168.38,168.11,3.86897688]
[1730464201875,9.92710523,168.38,168.12,3.86897688]
[1730464202074,9.92528704,168.44,168.13,3.86897688]
[1730464202269,9.92528704,168.44,168.1,1.0]
[1730464202270,9.92528704,168.44,168.15,47.62289416]
[1730464202477,9.92528704,168.44,168.16,3.86897688]
[1730464202778,9.92528704,168.44,168.05,2.7538449]
[1730464202779,17.87,168.43,168.09,47.62289416]
[1730464202974,9.92528704,168.44,168.17,3.86812193]
[1730464203177,9.92528704,168.44,168.18,2.38038273]
[1730464203178,2.974,168.27,168.18,2.38038273]
[1730464203372,9.92528704,168.44,168.19,3.86812193]
[1730464203572,9.92528704,168.44,168.2,1.4877392]
[1730464203776,2.9729,168.33,168.25,2.9741]
[1730464203993,9.92528704,168.43,168.15,47.62289416]
[1730464204286,2.99960413,168.46,168.16,3.86750105]
[1730464204487,9.92528704,168.49,168.17,3.86750105]
[1730464204689,9.92528704,168.49,168.16,1.0]
[1730464204690,30.73124067,168.49,168.18,3.86750105]
[1730464204874,27.79528704,168.48,168.19,3.86750105]
[1730464205081,42.82,168.5,168.2,3.86750105]
[1730464205082,9.92528704,168.47,168.2,3.86750105]
[1730464205286,2.9718,168.39,168.29,2.9735]
[1730464205491,9.92528704,168.49,168.22,0.41475211]
[1730464205683,9.92528704,168.49,168.23,3.86709129]
[1730464205882,9.92528704,168.49,168.24,3.86709129]
[1730464206082,9.92528704,168.49,168.16,1.0]
[1730464206279,47.62289416,168.45,168.25,2.37989792]
[1730464206487,2.9729,168.33,168.18,2.9171601]
[1730464206784,47.62289416,168.45,168.15,47.62289416]
[1730464206785,9.92528704,168.44,168.2,0.41544546]
[1730464206980,9.92528704,168.44,168.21,3.86741566]
[1730464207177,9.92528704,168.44,168.22,3.86741566]
[1730464207487,9.92528704,168.44,168.23,3.86741566]
[1730464207682,9.92528704,168.44,168.24,3.86741566]
[1730464207882,9.92528704,168.44,168.25,1.48746613]
[1730464208184,9.92528704,168.44,168.2,0.41544546]
[1730464208487,47.62289416,168.39,168.21,3.86742125]
[1730464208695,47.62289416,168.39,168.22,3.86742125]
[1730464208897,50.61940658,168.39,168.18,0.41544546]
[1730464209084,47.62289416,168.33,168.15,0.41544546]
[1730464209280,47.62289416,168.33,168.11,0.41544546]
[1730464209485,2.9758,168.17,168.08,2.9772]
[1730464209697,9.93082452,168.32,168.12,2.38125368]
[1730464209897,9.93082452,168.32,168.1,0.4152732]
[1730464209898,9.93082452,168.32,168.07,0.4152732]
[1730464210084,47.62289416,168.27,168.08,2.38193426]
[1730464210297,50.59203845,168.27,168.03,0.4152732]
[1730464210493,50.59203845,168.27,168.04,2.38204892]
[1730464210689,2.9765,168.13,168.05,2.38213272]
[1730464210889,50.59203845,168.27,167.92,47.62289416]
[1730464211107,50.59203845,168.27,167.93,3.47636914]
[1730464211394,50.59203845,168.27,167.97,47.62289416]
[1730464211395,47.62289416,168.27,167.97,47.62289416]
[1730464211605,2.9762,168.14,168.06,2.9775]
[1730464211784,50.60988723,168.27,167.93,1.0]
[1730464211996,50.60988723,168.27,167.94,2.38235235]
[1730464212290,9.93023939,168.26,167.92,47.62289416]
[1730464212498,50.60988723,168.27,167.95,2.38245575]
[1730464212692,50.60988723,168.27,167.96,2.38245575]
[1730464212893,50.60988723,168.27,167.97,2.38245575]
[1730464213199,50.60988723,168.27,167.98,2.38248265]
[1730464213200,47.62289416,168.2,167.98,2.38248265]
[1730464213494,47.62289416,168.2,167.97,2.9791]
[1730464213699,47.62289416,168.2,167.89,2.38248265]
[1730464213700,50.63869374,168.2,167.89,2.38248265]
[1730464214002,47.62289416,168.2,167.9,2.38325228]
[1730464214295,47.62289416,168.2,167.91,2.38325228]
[1730464214490,47.62289416,168.2,167.92,2.38303213]
[1730464214683,47.62289416,168.2,167.93,2.38303213]
[1730464214886,2.9762,168.14,168.01,2.9784]
[1730464215188,47.62289416,168.2,167.95,2.38303213]
[1730464215397,50.65758956,168.2,167.96,2.38303213]
[1730464215696,50.65758956,168.2,167.97,2.38303213]
[1730464215900,47.62289416,168.2,167.98,2.38303213]
[1730464216090,47.62289416,168.2,167.86,50.57050475]
[1730464216091,47.62289416,168.2,167.99,2.38303213]
[1730464216290,47.62289416,168.2,167.86,50.57050475]
[1730464216291,2.9766,168.12,168.03,2.978]
[1730464216610,90.46289416,168.27,167.91,47.62289416]
[1730464216900,2.9762,168.14,168.04,2.9779]
[1730464217099,90.46289416,168.27,167.93,2.38289576]
[1730464217283,2.94352941,168.24,167.94,2.38289576]
[1730464217487,47.62289416,168.2,167.95,2.38289576]
[1730464217687,47.62289416,168.2,167.96,2.38289576]
[1730464217902,47.62289416,168.2,167.97,2.38289576]
[1730464218105,47.62289416,168.2,167.98,2.38289576]
[1730464218301,47.62289416,168.2,168.02,2.9783]
[1730464218492,47.62289416,168.2,167.91,47.62289416]
[1730464218690,47.62289416,168.2,167.92,2.38284005]
[1730464218893,47.62289416,168.2,167.93,2.38284005]
[1730464219101,47.62289416,168.2,167.94,2.38284005]
[1730464219290,47.62289416,168.2,167.95,2.38284005]
[1730464219491,47.62289416,168.2,167.96,2.38284005]
[1730464219692,47.62289416,168.2,167.97,2.38284005]
[1730464219900,47.62289416,168.2,167.98,2.38284005]
[1730464220103,47.62289416,168.2,167.99,2.38284005]
[1730464220303,47.62289416,168.2,167.91,2.92661515]
[1730464220515,47.62289416,168.2,167.92,1.09459873]
[1730464220805,3.00496407,168.22,167.93,2.38280069]
[1730464221001,20.16478058,168.23,167.94,2.38280069]
[1730464221195,20.16478058,168.23,167.95,3.87204032]
[1730464221403,17.87,168.22,167.96,3.87204032]
[1730464221605,23.21341351,168.23,167.97,3.87204032]
[1730464221817,23.21341351,168.23,167.98,3.87204032]
[1730464221996,23.21341351,168.23,168.05,2.9777]
[1730464222498,2.9758,168.17,168.04,2.9779]
[1730464222695,65.49289416,168.2,167.94,2.38273429]
[1730464222895,65.49289416,168.2,167.95,3.871999]
[1730464222896,83.37289416,168.2,167.95,3.871999]
[1730464223101,83.37289416,168.2,167.96,3.871999]
[1730464223286,83.37289416,168.2,167.87,30.4440751]
[1730464223287,83.37289416,168.2,167.97,1.48950338]
[1730464223491,83.37289416,168.2,167.98,1.48950338]
[1730464223704,83.37289416,168.2,167.89,2.38320541]
[1730464223705,2.9773,168.08,167.99,2.9788]
[1730464223999,83.37289416,168.2,167.87,30.4440751]
[1730464224000,83.37289416,168.2,167.91,3.87275555]
[1730464224198,83.37289416,168.2,167.87,30.4440751]
[1730464224199,2.9773,168.08,168.0,2.9787]
[1730464224587,17.27842187,168.08,168.0,2.9787]
[1730464224989,2.9775,168.07,167.99,2.9788]
[1730464225394,14.30112187,168.08,167.98,1.48950835]
[1730464225606,17.27842187,168.08,168.0,2.9785]
[1730464225790,14.30112187,168.17,167.99,14.30112187]
[1730464225791,14.30112187,168.11,167.99,14.30112187]
[1730464226023,17.27712187,168.16,168.07,2.9773]
[1730464226314,14.30112187,168.18,168.07,14.30112187]
[1730464226489,2.977,168.1,168.04,14.30112187]
[1730464226692,23.21341351,168.23,168.04,14.30112187]
[1730464226693,14.30112187,168.17,168.04,14.30112187]
[1730464227308,14.30112187,168.14,168.04,14.30112187]
[1730464227808,23.21341351,168.23,167.99,14.30112187]
[1730464227809,14.30112187,168.12,167.99,14.30112187]
[1730464228311,14.30112187,168.12,168.0,1.48929983]
[1730464228510,22.87304224,168.13,167.99,22.87304224]
[1730464228704,29.16271351,168.23,168.02,22.87304224]
[1730464228705,22.87304224,168.16,168.02,22.87304224]
[1730464229300,25.84904224,168.16,168.06,2.9775]
[1730464229504,22.87304224,168.22,168.08,22.87304224]
[1730464230004,22.87304224,168.22,168.0,22.87304224]
[1730464230005,2.9748,168.22,168.1,22.87304224]
[1730464230311,22.87304224,168.27,168.13,22.87304224]
[1730464230517,2.9743,168.25,168.15,2.9759]
[1730464230710,22.87304224,168.27,168.13,22.87304224]
[1730464230894,22.87304224,168.3,168.16,22.87304224]
[1730464231404,22.87304224,168.38,168.25,22.87304224]
[1730464231599,22.87304224,168.35,168.22,22.87304224]
[1730464232193,20.16810506,168.39,168.25,22.87304224]
[1730464232600,2.9724,168.36,168.26,2.9741]
[1730464232814,22.87304224,168.35,168.21,24.36078614]
[1730464233011,22.87304224,168.35,168.21,22.87304224]
[1730464233211,22.87304224,168.35,168.27,2.9738]
[1730464233522,22.87304224,168.35,168.21,22.87304224]
[1730464233910,23.26174224,168.38,168.24,22.87304224]
[1730464234103,23.26174224,168.38,168.21,22.87304224]
[1730464234104,22.87304224,168.36,168.21,22.87304224]
[1730464234507,22.87304224,168.36,168.22,1.3438]
[1730464235111,22.87304224,168.3,168.2,1.3164]
[1730464235317,22.87304224,168.26,168.17,3.72395599]
[1730464235501,22.87304224,168.26,168.17,1.3438]
[1730464235904,22.87304224,168.24,168.13,2.38015599]
[1730464236207,0.3887,168.38,168.12,1.2978]
[1730464236208,22.87304224,168.3,168.14,22.87304224]
[1730464237111,22.87304224,168.3,168.15,1.48799478]
[1730464237319,22.87304224,168.3,168.14,22.87304224]
[1730464237617,2.9736,168.29,168.15,1.48795234]
[1730464237817,2.9736,168.29,168.14,22.87304224]
[1730464238014,22.87304224,168.3,168.19,2.9752]
[1730464238015,2.9739,168.28,168.19,2.9752]
[1730464238205,22.87304224,168.3,168.14,22.87304224]
[1730464238406,22.87304224,168.27,168.14,22.87304224]
[1730464238807,22.87304224,168.27,168.21,2.9749]
[1730464239007,22.87304224,168.3,168.17,22.87304224]
[1730464239317,22.87304224,168.34,168.17,22.87304224]
[1730464239615,22.87304224,168.34,168.2,2.9751]
[1730464239616,2.9735,168.3,168.2,2.9751]
[1730464239825,2.9735,168.3,168.17,22.87304224]
[1730464240002,0.3887,168.38,168.17,22.87304224]
[1730464240003,22.87304224,168.31,168.17,22.87304224]
[1730464240514,3.35705351,168.38,168.0,25.79625655]
[1730464240515,22.87304224,168.26,168.11,22.87304224]
[1730464240722,22.87304224,168.26,168.12,1.48819187]
[1730464240915,22.87304224,168.26,168.11,22.87304224]
[1730464241105,22.87304224,168.26,168.1,2.7133]
[1730464241106,2.9749,168.22,168.13,2.9763]
[1730464241305,22.87304224,168.23,168.1,2.7133]
[1730464241912,22.87304224,168.23,168.11,22.87304224]
[1730464242212,22.87304224,168.23,168.1,2.7133]
[1730464242213,2.9751,168.21,168.1,2.7133]
[1730464242605,22.87304224,168.23,168.1,2.7133]
[1730464242809,22.87304224,168.23,168.1,1.3587]
[1730464243325,2.9755,168.19,168.12,2.9764]
[1730464243513,2.9755,168.19,168.1,1.3587]
[1730464243724,0.3843,168.25,168.05,1.48845815]
[1730464243725,22.87304224,168.18,168.05,1.48845815]
[1730464244020,22.87304224,168.18,168.04,1.3546]
[1730464244421,2.9762,168.14,168.07,2.9773]
[1730464244608,2.9762,168.14,168.04,1.3546]
[1730464245009,2.9755,168.18,168.08,22.87304224]
[1730464245312,22.87304224,168.21,168.05,22.87304224]
[1730464245618,2.976,168.16,168.09,2.9769]
[1730464245827,22.87304224,168.21,168.05,22.87304224]
[1730464246010,22.87304224,168.18,168.05,22.87304224]
[1730464246619,22.87304224,168.18,168.04,1.3546]
[1730464246918,22.87304224,168.18,168.05,22.87304224]
[1730464247114,22.87304224,168.18,168.04,1.3546]
[1730464248110,22.87304224,168.18,168.06,2.9776]
[1730464248111,2.9762,168.14,168.06,2.9776]
[1730464248312,2.9762,168.14,168.04,1.3546]
[1730464248313,22.87304224,168.18,168.04,1.3546]
[1730464248822,2.9765,168.13,168.07,2.9773]
[1730464249013,22.87304224,168.18,168.04,1.3546]
[1730464249810,22.87304224,168.18,168.02,2.5425]
[1730464249811,2.9771,168.09,168.02,2.9782]
[1730464250009,22.87304224,168.12,168.02,2.9782]
[1730464250406,2.9772,168.09,168.03,2.9781]
[1730464252019,2.977,168.1,168.03,2.9781]
[1730464252226,22.87304224,168.12,168.03,2.9781]
[1730464252414,0.3853,168.14,168.03,22.87304224]
[1730464252609,0.3853,168.14,168.0,22.87304224]
[1730464252812,0.3853,168.14,168.08,2.9771]
[1730464253009,0.3853,168.14,168.0,22.87304224]
[1730464253226,2.9767,168.11,168.0,22.87304224]
[1730464253425,2.9767,168.11,168.0,24.36223511]
[1730464253619,0.3853,168.14,168.0,22.87304224]
[1730464254126,0.3853,168.14,168.0,24.36223511]
[1730464254318,2.977,168.1,168.05,2.9777]
[1730464254520,2.977,168.1,168.0,22.87304224]
[1730464254521,0.3853,168.14,168.0,22.87304224]
[1730464254834,22.87304224,168.12,168.0,22.87304224]
[1730464255023,2.9774,168.08,168.03,2.9781]
[1730464255534,22.87304224,168.12,167.96,2.6242]
[1730464255535,2.9783,168.02,167.98,2.979]
[1730464255821,22.87304224,168.09,167.96,4.11363711]
[1730464256529,0.3853,168.14,167.97,22.87304224]
[1730464256530,22.87304224,168.12,167.97,22.87304224]
[1730464256735,22.87304224,168.09,167.96,4.11363711]
[1730464257022,2.9781,168.04,167.99,2.9788]
[1730464257225,0.3853,168.14,167.96,1.2676]
[1730464257226,22.87304224,168.06,167.96,1.2676]
[1730464257616,2.9783,168.03,167.98,2.979]
[1730464257814,22.87304224,168.06,167.98,2.979]
[1730464258323,2.9782,168.03,167.97,2.9791]
[1730464258726,22.87304224,168.06,167.97,2.9791]
[1730464259130,2.9785,168.02,167.97,2.9791]
[1730464259433,0.3866,168.05,167.96,2.9793]
[1730464259629,2.9786,168.01,167.96,2.9793]
[1730464259931,22.87304224,168.03,167.95,2.9795]
[1730464260134,2.979,167.99,167.9,22.87304224]
[1730464260533,0.3866,168.05,167.92,22.87304224]
[1730464261134,22.87304224,168.04,167.9,22.87304224]
[1730464261315,0.3866,168.05,167.87,22.87304224]
[1730464261316,22.87304224,168.01,167.87,22.87304224]
[1730464262133,2.9794,167.96,167.92,2.98]
[1730464262644,2.9796,167.95,167.9,2.9803]
[1730464263340,22.87304224,167.98,167.86,2.5353]
[1730464263523,22.87304224,167.95,167.86,1.2638]
[1730464263722,22.87304224,167.95,167.82,22.87304224]
[1730464263932,2.9801,167.92,167.87,2.9808]
[1730464264326,0.3866,168.05,167.87,2.9808]
[1730464264327,22.87304224,168.0,167.87,22.87304224]
[1730464264528,22.87304224,168.04,167.9,22.87304224]
[1730464264728,22.87304224,168.01,167.87,22.87304224]
[1730464264925,22.87304224,167.98,167.89,2.9806]
[1730464265139,22.87304224,167.98,167.84,22.87304224]
[1730464265533,2.9797,167.95,167.9,2.9803]
[1730464265731,2.9797,167.95,167.84,22.87304224]
[1730464265925,0.3866,168.05,167.92,2.98]
[1730464265926,2.9794,167.97,167.92,2.98]
[1730464266326,22.87304224,168.01,167.92,2.98]
[1730464266930,22.87304224,167.99,167.84,22.87304224]
[1730464267134,22.87304224,167.99,167.85,1.3199]
[1730464267942,22.87304224,167.95,167.85,1.3199]
[1730464268226,22.87304224,167.95,167.83,1.2627]
[1730464269233,2.9802,167.92,167.88,2.9807]
[1730464269434,22.87304224,167.95,167.83,1.2627]
[1730464269936,22.87304224,167.98,167.84,22.87304224]
[1730464270333,2.9798,167.94,167.89,2.9806]
[1730464270534,22.87304224,167.95,167.82,24.19294224]
[1730464271051,22.87304224,167.93,167.82,1.3199]
[1730464271742,0.3891,167.97,167.8,1.2557]
[1730464271743,22.87304224,167.89,167.8,1.2557]
[1730464271949,2.9816,167.84,167.8,4.2378]
[1730464272136,22.87304224,167.87,167.8,4.2378]
[1730464272331,22.87304224,167.87,167.75,2.6812]
[1730464272547,22.87304224,167.84,167.75,1.3705]